[Event "Championnat d'Europe de Blitz"]
[Date "2024.12.09"]
[White "Beerdsen, Thomas"]
[Black "Dobrikov, Marco"]
[WhiteElo "2502"]
[BlackElo "2407"]
[Round "10.26"]
[Result "1-0"]
[TimeControl "180+2"]

1. e4 {[%clk 00:03:02]} e6 {[%emt 00:00:01] [%clk 00:03:04]} 2. d4 {[%emt
00:00:02] [%clk 00:03:03]} d5 {[%clk 00:03:05]} 3. Nc3 {[%clk 00:03:04]} Bb4
{[%emt 00:00:01] [%clk 00:03:06]} 4. e5 {[%emt 00:00:02] [%clk 00:03:04]} c5
{[%emt 00:00:01] [%clk 00:03:07]} 5. a3 {[%clk 00:03:05]} Bxc3+ {[%emt 00:00:02]
[%clk 00:03:08]} 6. bxc3 {[%emt 00:00:01] [%clk 00:03:06]} Qa5 {[%emt 00:00:01]
[%clk 00:03:09]} 7. Bd2 {[%clk 00:03:06]} Qa4 {[%emt 00:00:01] [%clk 00:03:10]}
8. Qg4 {[%emt 00:00:03] [%clk 00:03:05]} Ne7 {[%emt 00:00:15] [%clk 00:02:57]}
9. Nf3 {[%emt 00:00:14] [%clk 00:02:52]} Nbc6 {[%emt 00:00:53] [%clk 00:02:07]}
10. Qxg7 {[%emt 00:00:10] [%clk 00:02:45]} Rg8 {[%clk 00:02:08]} 11. Qxh7 {[%emt
00:00:02] [%clk 00:02:45]} cxd4 {[%emt 00:00:01] [%clk 00:02:09]} 12. Qd3 {[%emt
00:00:11] [%clk 00:02:37]} dxc3 {[%emt 00:00:04] [%clk 00:02:06]} 13. Bxc3
{[%emt 00:00:11] [%clk 00:02:28]} Bd7 {[%emt 00:00:11] [%clk 00:01:58]} 14. g3
{[%emt 00:00:04] [%clk 00:02:26]} O-O-O {[%emt 00:00:15] [%clk 00:01:44]} 15.
Be2 {[%emt 00:00:01] [%clk 00:02:26]} Nf5 {[%emt 00:00:11] [%clk 00:01:35]} 16.
O-O {[%emt 00:00:04] [%clk 00:02:25]} Qg4 {[%emt 00:00:25] [%clk 00:01:13]} 17.
Rab1 {[%emt 00:00:03] [%clk 00:02:23]} Qh3 {[%emt 00:00:17] [%clk 00:00:58]} 18.
Qa6 {[%emt 00:00:18] [%clk 00:02:07]} bxa6 {[%emt 00:00:26] [%clk 00:00:34]} 19.
Bxa6+ {[%emt 00:00:01] [%clk 00:02:08]} Kc7 {[%clk 00:00:36]} 20. Rb7+ {[%emt
00:00:01] [%clk 00:02:09]} Kc8 {[%clk 00:00:37]} 21. Rb5+ {[%emt 00:00:01] [%clk
00:02:10]} Kc7 {[%emt 00:00:03] [%clk 00:00:35]} 22. Rb7+ {[%emt 00:00:01] [%clk
00:02:11]} Kc8 {[%clk 00:00:36]} 23. Rfb1 {[%emt 00:00:01] [%clk 00:02:12]} Rdf8
{[%emt 00:00:10] [%clk 00:00:28]} 24. Rb8+ {[%emt 00:00:02] [%clk 00:02:12]} 1-0

[Site "Europe Echecs"]

[Event "Championnat d'Europe de Blitz"]
[Date "2024.12.09"]
[White "Subelj, Jan"]
[Black "Bulmaga, Irina"]
[WhiteElo "2526"]
[BlackElo "2386"]
[Round "10.27"]
[Result "0-1"]
[TimeControl "180+2"]

1. e4 {[%emt 00:22:35] [%clk 00:03:03]} e5 {[%emt 00:00:01] [%clk 00:03:03]} 2.
Nf3 {[%emt 00:00:01] [%clk 00:03:03]} Nc6 {[%emt 00:00:02] [%clk 00:03:04]} 3.
Bb5 {[%emt 00:00:03] [%clk 00:03:01]} Nf6 {[%emt 00:00:02] [%clk 00:03:04]} 4.
d3 {[%emt 00:00:02] [%clk 00:03:01]} Bc5 {[%emt 00:00:02] [%clk 00:03:05]} 5.
Nbd2 {[%emt 00:00:02] [%clk 00:03:01]} O-O {[%emt 00:00:08] [%clk 00:02:59]} 6.
Nb3 {[%emt 00:00:07] [%clk 00:02:55]} Bd6 {[%emt 00:00:08] [%clk 00:02:53]} 7.
O-O {[%emt 00:00:06] [%clk 00:02:51]} Re8 {[%emt 00:00:03] [%clk 00:02:52]} 8.
a4 {[%emt 00:00:04] [%clk 00:02:48]} a6 {[%emt 00:00:06] [%clk 00:02:49]} 9. Bc4
{[%emt 00:00:01] [%clk 00:02:48]} Bf8 {[%emt 00:00:03] [%clk 00:02:48]} 10. Bg5
{[%emt 00:00:04] [%clk 00:02:46]} h6 {[%emt 00:00:02] [%clk 00:02:48]} 11. Bh4
{[%emt 00:00:02] [%clk 00:02:46]} d6 {[%emt 00:00:04] [%clk 00:02:47]} 12. c3
{[%emt 00:00:09] [%clk 00:02:39]} g5 {[%emt 00:00:15] [%clk 00:02:33]} 13. Bg3
{[%emt 00:00:02] [%clk 00:02:39]} Bg4 {[%emt 00:00:04] [%clk 00:02:31]} 14. Nbd2
{[%emt 00:00:03] [%clk 00:02:38]} Ne7 {[%emt 00:00:12] [%clk 00:02:21]} 15. Qb3
{[%emt 00:00:03] [%clk 00:02:37]} Bh5 {[%emt 00:00:13] [%clk 00:02:10]} 16. Bxe5
{[%emt 00:00:11] [%clk 00:02:28]} dxe5 {[%emt 00:00:21] [%clk 00:01:51]} 17.
Nxe5 {[%emt 00:00:01] [%clk 00:02:28]} Ned5 {[%emt 00:00:01] [%clk 00:01:53]}
18. d4 {[%emt 00:00:19] [%clk 00:02:11]} Rxe5 {[%emt 00:00:19] [%clk 00:01:36]}
19. dxe5 {[%emt 00:00:02] [%clk 00:02:12]} Nb6 {[%emt 00:00:22] [%clk 00:01:16]}
20. a5 {[%emt 00:00:52] [%clk 00:01:22]} Nxc4 {[%emt 00:00:09] [%clk 00:01:09]}
21. Nxc4 {[%clk 00:01:22]} Nd7 {[%emt 00:00:06] [%clk 00:01:05]} 22. Qxb7 {[%emt
00:00:07] [%clk 00:01:17]} Be2 {[%emt 00:00:02] [%clk 00:01:06]} 23. Qc6 {[%emt
00:00:10] [%clk 00:01:09]} Bxf1 {[%emt 00:00:05] [%clk 00:01:02]} 24. Rxf1
{[%emt 00:00:03] [%clk 00:01:09]} Nc5 {[%emt 00:00:09] [%clk 00:00:55]} 25. b4
{[%emt 00:00:08] [%clk 00:01:03]} Ne6 {[%emt 00:00:02] [%clk 00:00:55]} 26. Ne3
{[%clk 00:01:04]} Qe8 {[%emt 00:00:06] [%clk 00:00:51]} 27. Qc4 {[%emt 00:00:02]
[%clk 00:01:04]} Qb5 {[%emt 00:00:03] [%clk 00:00:50]} 28. Qa2 {[%emt 00:00:02]
[%clk 00:01:04]} Qxe5 {[%emt 00:00:03] [%clk 00:00:49]} 29. f3 {[%emt 00:00:01]
[%clk 00:01:04]} Qxc3 {[%emt 00:00:04] [%clk 00:00:47]} 30. Nd5 {[%emt 00:00:01]
[%clk 00:01:05]} Qd4+ {[%emt 00:00:03] [%clk 00:00:47]} 31. Kh1 {[%emt 00:00:01]
[%clk 00:01:06]} c6 {[%emt 00:00:03] [%clk 00:00:46]} 32. Nb6 {[%emt 00:00:01]
[%clk 00:01:07]} Rd8 {[%emt 00:00:01] [%clk 00:00:47]} 33. Qe2 {[%emt 00:00:07]
[%clk 00:01:02]} Qd3 {[%emt 00:00:04] [%clk 00:00:45]} 34. Qf2 {[%emt 00:00:04]
[%clk 00:01:00]} Bxb4 {[%emt 00:00:03] [%clk 00:00:43]} 35. h4 {[%emt 00:00:04]
[%clk 00:00:57]} Bxa5 {[%emt 00:00:04] [%clk 00:00:42]} 36. Ra1 {[%emt 00:00:07]
[%clk 00:00:52]} Bc3 {[%emt 00:00:07] [%clk 00:00:36]} 37. Rc1 {[%emt 00:00:24]
[%clk 00:00:30]} Bd4 {[%emt 00:00:04] [%clk 00:00:33]} 38. Qg3 {[%clk 00:00:31]}
Bxb6 {[%emt 00:00:04] [%clk 00:00:31]} 39. hxg5 {[%clk 00:00:32]} hxg5 {[%emt
00:00:02] [%clk 00:00:32]} 40. Rxc6 {[%emt 00:00:02] [%clk 00:00:31]} Qd1+
{[%emt 00:00:03] [%clk 00:00:31]} 41. Kh2 {[%emt 00:00:01] [%clk 00:00:32]} Be3
{[%emt 00:00:09] [%clk 00:00:23]} 42. Kh3 {[%emt 00:00:19] [%clk 00:00:15]} Qh1+
{[%emt 00:00:09] [%clk 00:00:16]} 43. Kg4 {[%emt 00:00:02] [%clk 00:00:16]} Bf4
{[%emt 00:00:02] [%clk 00:00:16]} 44. Qf2 {[%emt 00:00:02] [%clk 00:00:16]} a5
{[%emt 00:00:07] [%clk 00:00:11]} 45. g3 {[%emt 00:00:03] [%clk 00:00:15]} Be5
{[%emt 00:00:11]} 46. Qb6 {[%clk 00:00:08]} Re8 {[%emt 00:00:03] [%clk
00:00:10]} 47. Qb5 {[%emt 00:00:03] [%clk 00:00:07]} Ng7 {[%emt 00:00:02] [%clk
00:00:10]} 0-1

[Site "Europe Echecs"]

[Event "Championnat d'Europe de Blitz"]
[Date "2024.12.09"]
[White "Maltsevskaya, Aleksandra"]
[Black "Saraci, Nderim"]
[WhiteElo "2368"]
[BlackElo "2431"]
[Round "10.28"]
[Result "0-1"]
[TimeControl "180+2"]

1. e4 {[%clk 00:03:03]} d5 {[%emt 00:00:03] [%clk 00:03:01]} 2. exd5 {[%emt
00:00:01] [%clk 00:03:04]} Qxd5 {[%emt 00:00:01] [%clk 00:03:02]} 3. Nc3 {[%emt
00:00:01] [%clk 00:03:04]} Qd6 {[%emt 00:00:01] [%clk 00:03:03]} 4. Nf3 {[%emt
00:00:01] [%clk 00:03:05]} Nf6 {[%emt 00:00:02] [%clk 00:03:03]} 5. g3 {[%emt
00:00:01] [%clk 00:03:06]} c6 {[%emt 00:00:32] [%clk 00:02:34]} 6. Bg2 {[%emt
00:00:01] [%clk 00:03:06]} Bg4 {[%emt 00:00:04] [%clk 00:02:31]} 7. h3 {[%emt
00:00:02] [%clk 00:03:06]} Bh5 {[%emt 00:00:03] [%clk 00:02:30]} 8. O-O {[%emt
00:00:02] [%clk 00:03:06]} Nbd7 {[%emt 00:00:03] [%clk 00:02:29]} 9. d4 {[%emt
00:00:01] [%clk 00:03:06]} e6 {[%emt 00:00:10] [%clk 00:02:21]} 10. a3 {[%emt
00:00:08] [%clk 00:03:01]} Qc7 {[%emt 00:00:04] [%clk 00:02:20]} 11. Ne2 {[%emt
00:00:30] [%clk 00:02:33]} Bd6 {[%emt 00:00:08] [%clk 00:02:13]} 12. Bf4 {[%emt
00:00:10] [%clk 00:02:25]} O-O {[%emt 00:00:06] [%clk 00:02:09]} 13. c4 {[%emt
00:00:21] [%clk 00:02:07]} Rad8 {[%emt 00:00:08] [%clk 00:02:02]} 14. Qb3 {[%emt
00:00:28] [%clk 00:01:41]} Bxf4 {[%emt 00:00:24] [%clk 00:01:40]} 15. Nxf4
{[%emt 00:00:02] [%clk 00:01:42]} Bxf3 {[%emt 00:00:03] [%clk 00:01:38]} 16.
Bxf3 {[%emt 00:00:03] [%clk 00:01:41]} e5 {[%emt 00:00:02] [%clk 00:01:38]} 17.
dxe5 {[%emt 00:00:07] [%clk 00:01:37]} Nxe5 {[%emt 00:00:02] [%clk 00:01:38]}
18. Rad1 {[%emt 00:00:05] [%clk 00:01:33]} Qb6 {[%emt 00:00:23] [%clk 00:01:17]}
19. Qc3 {[%emt 00:00:16] [%clk 00:01:19]} Qc5 {[%emt 00:00:18] [%clk 00:01:01]}
20. Bg2 {[%emt 00:00:33] [%clk 00:00:50]} Ng6 {[%emt 00:00:21] [%clk 00:00:41]}
21. Nxg6 {[%emt 00:00:08] [%clk 00:00:44]} hxg6 {[%emt 00:00:02] [%clk
00:00:41]} 22. b4 {[%emt 00:00:02] [%clk 00:00:44]} Qf5 {[%emt 00:00:05] [%clk
00:00:38]} 23. Rfe1 {[%emt 00:00:11] [%clk 00:00:35]} Rfe8 {[%emt 00:00:02]
[%clk 00:00:38]} 24. Rxd8 {[%emt 00:00:19] [%clk 00:00:18]} Rxd8 {[%emt
00:00:01] [%clk 00:00:38]} 25. Qe3 {[%emt 00:00:09] [%clk 00:00:11]} Qc2 {[%emt
00:00:08] [%clk 00:00:31]} 26. Qxa7 {[%emt 00:00:02] [%clk 00:00:12]} Rd7 {[%emt
00:00:15] [%clk 00:00:19]} 27. c5 {[%emt 00:00:15]} Rd2 {[%clk 00:00:12]} 28.
Qb8+ {[%emt 00:00:02] [%clk 00:00:08]} Kh7 {[%clk 00:00:13]} 29. Qf4 {[%emt
00:00:01] [%clk 00:00:08]} Qc3 {[%emt 00:00:07] [%clk 00:00:07]} 30. Re3 {[%emt
00:00:04] [%clk 00:00:07]} Qc1+ {[%emt 00:00:06] [%clk 00:00:04]} 31. Kh2 {[%clk
00:00:08]} Qb2 {[%clk 00:00:05]} 32. Rf3 {[%emt 00:00:06] [%clk 00:00:04]} Re2
{[%emt 00:00:01] [%clk 00:00:05]} 33. Qh4+ {[%emt 00:00:02] [%clk 00:00:04]} Kg8
{[%clk 00:00:07]} 34. Qf4 {[%clk 00:00:06]} g5 {[%emt 00:00:05] [%clk 00:00:03]}
35. Qf5 {[%emt 00:00:03] [%clk 00:00:05]} Rd2 {[%emt 00:00:03] [%clk 00:00:03]}
36. Bf1 {[%emt 00:00:01] [%clk 00:00:05]} Rd8 {[%emt 00:00:02] [%clk 00:00:04]}
37. Kg2 {[%clk 00:00:06]} g4 {[%emt 00:00:01] [%clk 00:00:04]} 38. hxg4 {[%emt
00:00:01] [%clk 00:00:07]} Rf8 {[%emt 00:00:02] [%clk 00:00:04]} 39. g5 {[%emt
00:00:02] [%clk 00:00:07]} Nd5 {[%emt 00:00:01] [%clk 00:00:06]} 40. Bd3 {[%emt
00:00:02] [%clk 00:00:06]} g6 {[%emt 00:00:02] [%clk 00:00:06]} 41. Qe4 {[%emt
00:00:05]} Qd2 {[%clk 00:00:06]} 42. Bc4 {[%emt 00:00:02] [%clk 00:00:05]} Qxg5
{[%emt 00:00:02] [%clk 00:00:06]} 43. Bxd5 {[%emt 00:00:02] [%clk 00:00:06]}
cxd5 {[%clk 00:00:07]} 44. Qf4 {[%emt 00:00:02] [%clk 00:00:06]} Qe7 {[%emt
00:00:01] [%clk 00:00:07]} 45. Rd3 {[%emt 00:00:02] [%clk 00:00:06]} Rd8 {[%emt
00:00:02] [%clk 00:00:07]} 46. Qf3 {[%emt 00:00:02] [%clk 00:00:06]} d4 {[%emt
00:00:01] [%clk 00:00:08]} 47. Qf4 {[%emt 00:00:01] [%clk 00:00:07]} Qd7 {[%emt
00:00:01] [%clk 00:00:09]} 48. Qe4 {[%emt 00:00:01] [%clk 00:00:08]} Kg7 {[%emt
00:00:03] [%clk 00:00:08]} 49. Qe5+ {[%emt 00:00:01] [%clk 00:00:08]} Kg8 {[%emt
00:00:01] [%clk 00:00:09]} 50. Kg1 {[%clk 00:00:09]} Qg4 {[%emt 00:00:04] [%clk
00:00:07]} 51. Kg2 {[%emt 00:00:04] [%clk 00:00:07]} Qd7 {[%clk 00:00:08]} 52.
a4 {[%emt 00:00:02] [%clk 00:00:07]} Qc6+ {[%emt 00:00:02] [%clk 00:00:09]} 53.
Kg1 {[%emt 00:00:02] [%clk 00:00:08]} Re8 {[%clk 00:00:10]} 54. Qxe8+ {[%emt
00:00:07] [%clk 00:00:03]} Qxe8 {[%emt 00:00:01] [%clk 00:00:11]} 55. b5 {[%emt
00:00:01] [%clk 00:00:04]} Qe4 {[%emt 00:00:02] [%clk 00:00:11]} 56. Rd1 {[%emt
00:00:03] [%clk 00:00:03]} d3 {[%clk 00:00:13]} 57. c6 {[%emt 00:00:01] [%clk
00:00:04]} bxc6 {[%clk 00:00:14]} 58. b6 {[%emt 00:00:01] [%clk 00:00:05]} Qe2
{[%emt 00:00:02] [%clk 00:00:13]} 59. Rb1 {[%clk 00:00:07]} d2 {[%clk 00:00:14]}
0-1

[Site "Europe Echecs"]

[Event "Championnat d'Europe de Blitz"]
[Date "2024.12.09"]
[White "Paichadze, Luka"]
[Black "Maier, Christian"]
[WhiteElo "2532"]
[BlackElo "2235"]
[Round "10.29"]
[Result "1-0"]
[TimeControl "180+2"]

1. e4 {[%emt 00:00:02] [%clk 00:03:01]} e6 {[%emt 00:00:04] [%clk 00:03:02]} 2.
d4 {[%clk 00:03:02]} d5 {[%emt 00:00:01] [%clk 00:03:03]} 3. e5 {[%clk
00:03:03]} c5 {[%emt 00:00:01] [%clk 00:03:04]} 4. c3 {[%emt 00:00:01] [%clk
00:03:04]} Nd7 {[%emt 00:00:02] [%clk 00:03:04]} 5. Nf3 {[%emt 00:00:07] [%clk
00:02:58]} Ne7 {[%emt 00:00:02] [%clk 00:03:04]} 6. Bd3 {[%emt 00:00:02] [%clk
00:02:57]} Nc6 {[%emt 00:00:03] [%clk 00:03:05]} 7. O-O {[%emt 00:00:20] [%clk
00:02:38]} Be7 {[%emt 00:00:02] [%clk 00:03:06]} 8. a3 {[%emt 00:00:04] [%clk
00:02:36]} a6 {[%emt 00:00:02] [%clk 00:03:06]} 9. b4 {[%emt 00:00:04] [%clk
00:02:33]} cxd4 {[%emt 00:00:02] [%clk 00:03:06]} 10. cxd4 {[%emt 00:00:01]
[%clk 00:02:34]} Nb6 {[%emt 00:00:01] [%clk 00:03:07]} 11. Nbd2 {[%emt 00:00:15]
[%clk 00:02:21]} Bd7 {[%emt 00:00:02] [%clk 00:03:08]} 12. Nb3 {[%emt 00:00:08]
[%clk 00:02:15]} Na7 {[%emt 00:00:02] [%clk 00:03:08]} 13. Re1 {[%emt 00:00:04]
[%clk 00:02:13]} Ba4 {[%emt 00:00:07] [%clk 00:03:03]} 14. Bc2 {[%clk 00:02:14]}
Rc8 {[%emt 00:00:01] [%clk 00:03:03]} 15. Nc5 {[%emt 00:00:02] [%clk 00:02:13]}
Bxc2 {[%emt 00:00:04] [%clk 00:03:01]} 16. Qxc2 {[%emt 00:00:01] [%clk
00:02:14]} Qc7 {[%emt 00:00:19] [%clk 00:02:44]} 17. Bg5 {[%emt 00:00:09] [%clk
00:02:08]} Nc4 {[%emt 00:00:05] [%clk 00:02:40]} 18. Bxe7 {[%emt 00:00:10] [%clk
00:02:00]} Qxe7 {[%emt 00:00:03] [%clk 00:02:40]} 19. Nd2 {[%emt 00:00:12] [%clk
00:01:49]} O-O {[%emt 00:00:46] [%clk 00:01:56]} 20. Nxc4 {[%emt 00:00:36] [%clk
00:01:16]} dxc4 {[%emt 00:00:01] [%clk 00:01:57]} 21. Rad1 {[%emt 00:00:11]}
Rfd8 {[%clk 00:01:57]} 22. f4 {[%emt 00:00:04] [%clk 00:01:06]} Nb5 {[%emt
00:00:07] [%clk 00:01:52]} 23. Qf2 {[%emt 00:00:15] [%clk 00:00:52]} Nxa3 {[%emt
00:00:11] [%clk 00:01:44]} 24. f5 {[%emt 00:00:01] [%clk 00:00:53]} exf5 {[%emt
00:00:03] [%clk 00:01:42]} 25. d5 {[%emt 00:00:02] [%clk 00:00:53]} c3 {[%emt
00:00:11] [%clk 00:01:33]} 26. d6 {[%emt 00:00:05] [%clk 00:00:49]} Qg5 {[%emt
00:00:01] [%clk 00:01:34]} 27. e6 {[%emt 00:00:06] [%clk 00:00:45]} fxe6 {[%emt
00:00:16] [%clk 00:01:19]} 28. Nxe6 {[%emt 00:00:02] [%clk 00:00:45]} Qf6 {[%emt
00:00:03] [%clk 00:01:18]} 29. Nxd8 {[%emt 00:00:03] [%clk 00:00:45]} Rxd8
{[%emt 00:00:01] [%clk 00:01:19]} 30. d7 {[%emt 00:00:04] [%clk 00:00:43]} Qf7
{[%emt 00:00:18] [%clk 00:01:03]} 31. Qe3 {[%emt 00:00:26] [%clk 00:00:19]} c2
{[%emt 00:00:07] [%clk 00:00:58]} 32. Rc1 {[%emt 00:00:04] [%clk 00:00:17]} Nc4
{[%emt 00:00:18] [%clk 00:00:42]} 33. Qe8+ {[%emt 00:00:04] [%clk 00:00:14]} Qf8
{[%emt 00:00:05] [%clk 00:00:39]} 34. Qxd8 {[%emt 00:00:02] [%clk 00:00:14]} 1-0

[Site "Europe Echecs"]

[Event "Championnat d'Europe de Blitz"]
[Date "2024.12.09"]
[White "Magold, Filip"]
[Black "Bernadskiy, Vitaliy"]
[WhiteElo "2428"]
[BlackElo "2546"]
[Round "10.30"]
[Result "0-1"]
[TimeControl "180+2"]

1. Nf3 {[%emt 00:00:01] [%clk 00:03:02]} Nf6 {[%emt 00:00:02] [%clk 00:03:03]}
2. c4 {[%clk 00:03:03]} g6 {[%emt 00:00:03] [%clk 00:03:03]} 3. b3 {[%clk
00:03:04]} Bg7 {[%clk 00:03:04]} 4. Bb2 {[%emt 00:00:01] [%clk 00:03:05]} d6
{[%emt 00:00:01] [%clk 00:03:05]} 5. g3 {[%clk 00:03:06]} e5 {[%emt 00:00:01]
[%clk 00:03:06]} 6. Bg2 {[%emt 00:00:01] [%clk 00:03:07]} O-O {[%emt 00:00:02]
[%clk 00:03:06]} 7. d3 {[%emt 00:00:01] [%clk 00:03:08]} Nh5 {[%emt 00:00:03]
[%clk 00:03:04]} 8. Nc3 {[%emt 00:00:05] [%clk 00:03:05]} f5 {[%emt 00:00:01]
[%clk 00:03:04]} 9. e3 {[%emt 00:00:23] [%clk 00:02:44]} Nc6 {[%emt 00:00:04]
[%clk 00:03:03]} 10. a3 {[%emt 00:00:02] [%clk 00:02:44]} f4 {[%emt 00:00:04]
[%clk 00:03:00]} 11. Qc2 {[%emt 00:00:12] [%clk 00:02:34]} Bg4 {[%emt 00:00:05]
[%clk 00:02:57]} 12. Nd2 {[%emt 00:00:40] [%clk 00:01:57]} fxe3 {[%emt 00:00:02]
[%clk 00:02:57]} 13. fxe3 {[%emt 00:00:02] [%clk 00:01:57]} Bh6 {[%emt 00:00:02]
[%clk 00:02:56]} 14. Nd5 {[%emt 00:00:10] [%clk 00:01:49]} Ne7 {[%emt 00:00:04]
[%clk 00:02:55]} 15. Nf1 {[%emt 00:00:10] [%clk 00:01:41]} c6 {[%emt 00:00:12]
[%clk 00:02:45]} 16. Nxe7+ {[%emt 00:00:01] [%clk 00:01:41]} Qxe7 {[%emt
00:00:02] [%clk 00:02:45]} 17. b4 {[%emt 00:00:46] [%clk 00:00:57]} Rf7 {[%emt
00:00:09] [%clk 00:02:38]} 18. h3 {[%emt 00:00:03] [%clk 00:00:56]} Bf3 {[%emt
00:00:02] [%clk 00:02:38]} 19. g4 {[%emt 00:00:45] [%clk 00:00:13]} Bxg2 {[%emt
00:00:44] [%clk 00:01:56]} 20. Qxg2 {[%emt 00:00:02] [%clk 00:00:12]} Qh4+
{[%emt 00:00:02] [%clk 00:01:56]} 21. Ke2 {[%emt 00:00:03] [%clk 00:00:11]} Raf8
{[%emt 00:00:02] [%clk 00:01:56]} 22. Rh2 {[%emt 00:00:05] [%clk 00:00:08]} Rxf1
{[%emt 00:00:05] [%clk 00:01:52]} 23. Rxf1 {[%emt 00:00:02] [%clk 00:00:08]}
Ng3+ {[%emt 00:00:02] [%clk 00:01:52]} 0-1

[Site "Europe Echecs"]

[Event "Championnat d'Europe de Blitz"]
[Date "2024.12.09"]
[White "Herega, Nejc"]
[Black "Dragnev, Valentin"]
[WhiteElo "2249"]
[BlackElo "2563"]
[Round "10.31"]
[Result "0-1"]
[TimeControl "180+2"]

1. d4 {[%emt 00:02:15] [%clk 00:03:03]} d5 {[%emt 00:00:01] [%clk 00:03:03]} 2.
Nf3 {[%emt 00:00:01] [%clk 00:03:03]} e6 {[%emt 00:00:05] [%clk 00:03:01]} 3.
Bf4 {[%emt 00:00:04] [%clk 00:03:02]} Bd6 {[%emt 00:00:03] [%clk 00:03:00]} 4.
e3 {[%emt 00:00:02] [%clk 00:03:01]} Bxf4 {[%emt 00:00:06] [%clk 00:02:56]} 5.
exf4 {[%emt 00:00:01] [%clk 00:03:02]} Ne7 {[%emt 00:00:01] [%clk 00:02:57]} 6.
Nbd2 {[%emt 00:00:05] [%clk 00:02:58]} O-O {[%emt 00:00:09] [%clk 00:02:51]} 7.
c3 {[%emt 00:00:03] [%clk 00:02:57]} b6 {[%emt 00:00:01] [%clk 00:02:51]} 8. g3
{[%emt 00:00:05] [%clk 00:02:54]} c5 {[%emt 00:00:03] [%clk 00:02:51]} 9. Bd3
{[%emt 00:00:03] [%clk 00:02:53]} Ba6 {[%emt 00:00:05] [%clk 00:02:48]} 10. Qe2
{[%emt 00:00:02] [%clk 00:02:54]} Bxd3 {[%emt 00:00:12] [%clk 00:02:38]} 11.
Qxd3 {[%emt 00:00:01] [%clk 00:02:55]} Nbc6 {[%clk 00:02:39]} 12. O-O {[%emt
00:00:02] [%clk 00:02:55]} c4 {[%emt 00:00:04] [%clk 00:02:37]} 13. Qc2 {[%emt
00:00:09] [%clk 00:02:47]} b5 {[%emt 00:00:09] [%clk 00:02:30]} 14. Ne5 {[%clk
00:02:48]} Qd6 {[%emt 00:00:22] [%clk 00:02:11]} 15. a3 {[%emt 00:00:11] [%clk
00:02:38]} a5 {[%emt 00:00:02] [%clk 00:02:11]} 16. Ndf3 {[%emt 00:00:03] [%clk
00:02:37]} h6 {[%emt 00:00:20] [%clk 00:01:53]} 17. Nxc6 {[%emt 00:00:07] [%clk
00:02:32]} Nxc6 {[%emt 00:00:02] [%clk 00:01:53]} 18. Ne5 {[%clk 00:02:32]} b4
{[%emt 00:00:16] [%clk 00:01:40]} 19. axb4 {[%emt 00:00:33] [%clk 00:02:01]}
axb4 {[%emt 00:00:03] [%clk 00:01:39]} 20. Nxc6 {[%emt 00:00:06] [%clk
00:01:57]} Qxc6 {[%emt 00:00:04] [%clk 00:01:38]} 21. cxb4 {[%emt 00:00:06]
[%clk 00:01:53]} Qb6 {[%emt 00:00:11] [%clk 00:01:29]} 22. Rxa8 {[%emt 00:00:35]
[%clk 00:01:19]} Rxa8 {[%emt 00:00:01] [%clk 00:01:30]} 23. b3 {[%clk 00:01:20]}
Qxb4 {[%emt 00:00:14] [%clk 00:01:18]} 24. bxc4 {[%emt 00:00:04] [%clk
00:01:18]} Qxc4 {[%emt 00:00:07] [%clk 00:01:13]} 25. Qb2 {[%emt 00:00:42] [%clk
00:00:39]} Ra2 {[%emt 00:00:19] [%clk 00:00:56]} 26. Qb8+ {[%clk 00:00:39]} Kh7
{[%emt 00:00:01] [%clk 00:00:57]} 27. Qb1+ {[%emt 00:00:24] [%clk 00:00:17]} g6
{[%emt 00:00:09] [%clk 00:00:49]} 28. Rd1 {[%emt 00:00:10] [%clk 00:00:10]} Qe2
{[%emt 00:00:14] [%clk 00:00:38]} 29. Rf1 {[%clk 00:00:11]} Rd2 {[%clk
00:00:39]} 30. Qb7 {[%emt 00:00:08] [%clk 00:00:06]} Kg7 {[%emt 00:00:01] [%clk
00:00:39]} 31. Qa7 {[%emt 00:00:02] [%clk 00:00:06]} Qe4 {[%emt 00:00:09] [%clk
00:00:32]} 32. Qc7 {[%emt 00:00:03] [%clk 00:00:05]} Rxd4 {[%emt 00:00:05] [%clk
00:00:29]} 33. h4 {[%clk 00:00:06]} Rd3 {[%emt 00:00:04] [%clk 00:00:27]} 34. h5
{[%emt 00:00:03] [%clk 00:00:05]} gxh5 {[%emt 00:00:02] [%clk 00:00:27]} 35. Qd8
{[%clk 00:00:07]} Qd4 {[%emt 00:00:07] [%clk 00:00:22]} 36. Qh4 {[%emt 00:00:02]
[%clk 00:00:07]} Qe4 {[%emt 00:00:09] [%clk 00:00:14]} 37. Qxh5 {[%emt 00:00:03]
[%clk 00:00:05]} Qf3 {[%emt 00:00:02] [%clk 00:00:15]} 38. Qh4 {[%emt 00:00:02]
[%clk 00:00:06]} Rd2 {[%emt 00:00:03] [%clk 00:00:13]} 39. Qh3 {[%emt 00:00:04]
[%clk 00:00:04]} d4 {[%emt 00:00:02] [%clk 00:00:14]} 40. Qh4 {[%emt 00:00:02]
[%clk 00:00:04]} d3 {[%emt 00:00:02] [%clk 00:00:14]} 41. f5 {[%clk 00:00:05]}
Qxf5 {[%emt 00:00:02] [%clk 00:00:14]} 42. Qd4+ {[%clk 00:00:07]} Kh7 {[%emt
00:00:03] [%clk 00:00:12]} 43. Qe3 {[%emt 00:00:01] [%clk 00:00:08]} Re2 {[%emt
00:00:02] [%clk 00:00:12]} 44. Qd4 {[%emt 00:00:06] [%clk 00:00:04]} d2 {[%emt
00:00:02] [%clk 00:00:11]} 45. Kh2 {[%emt 00:00:01] [%clk 00:00:05]} Qd5 {[%emt
00:00:07] [%clk 00:00:06]} 46. Qf4 {[%emt 00:00:03] [%clk 00:00:05]} Qf5 {[%emt
00:00:03] [%clk 00:00:06]} 47. Qc4 {[%emt 00:00:04] [%clk 00:00:03]} Re1 {[%emt
00:00:02] [%clk 00:00:05]} 48. Kg2 {[%emt 00:00:03] [%clk 00:00:03]} Qd5+ {[%emt
00:00:03] [%clk 00:00:04]} 49. Qxd5 {[%emt 00:00:02] [%clk 00:00:03]} exd5
{[%clk 00:00:05]} 0-1

[Site "Europe Echecs"]